Cogmind - Beta 10.2 @@@ ROGUE MODE // 2022.02.11 @ 17:17:08 Player: lumberblack Result: Destroyed by D-53 Grenadier with Mini Grenade Launcher Performance ------------- Evolutions (0) 0 Regions Visited (0) 0 Robots Destroyed (2) 10 Value Destroyed (13) 13 Prototype IDs (0) 0 Alien Tech Used (0) 0 Bonus (0) 0 TOTAL SCORE: 23 Bonus ------- None Cogmind --------- Core Integrity 0/250 Matter 291/300 Energy 81/100 System Corruption 0% Temperature Cool (0) Movement Core (200) Ox3 Location -11/Scrapyard Parts ------- > --- POWER (1) -------- (None) > --- PROPULSION (2) --- (None) > --- UTILITY (2) ------ Small Storage Unit Small Storage Unit > --- WEAPON (2) ------- EM Pulse Gun > --- INVENTORY (8) ---- Light Ion Engine Wheel Tractor Beam Peak State ------------ > --- POWER ------------ Light Ion Engine > --- PROPULSION ------- Aluminum Leg Aluminum Leg > --- UTILITY ---------- Small Storage Unit Small Storage Unit > --- WEAPON ----------- Assault Rifle Assault Rifle > --- INVENTORY -------- Ion Engine Light Treads Light Treads Wheel Compact Wheel EM Pulse Gun [Rating: 7] Favorites ----------- Power Light Ion Engine Engine Light Ion Engine Propulsion Light Treads Treads Light Treads Leg Aluminum Leg Utility Small Storage Unit Storage Small Storage Unit Weapon Assault Rifle Energy Gun EM Pulse Gun Ballistic Gun Assault Rifle Build | -11 ------- Run | Scr Slots Evolved . | . Power . | . Propulsion . | . Utility . | . Weapon . | . Parts Attached 6 | 6 Power 1 | 1 Engine 1 | 1 Core . | . Reactor . | . Propulsion 2 | 2 Treads 2 | 2 Leg . | . Wheel . | . Hover . | . Flight . | . Utility 1 | 1 Device . | . Storage 1 | 1 Processor . | . Hackware . | . Protection . | . Artifact . | . Weapon 2 | 2 Energy Gun 1 | 1 Energy Cannon . | . Ballistic Gun 1 | 1 Ballistic Cannon . | . Launcher . | . Special Weapon . | . Impact Weapon . | . Slashing Weapon . | . Piercing Weapon . | . Special Melee Weapon . | . Unidentified Prototypes . | . Parts Lost 5 | 5 Power 1 | 1 Propulsion 2 | 2 Utility . | . Weapon 2 | 2 Highest Loss Streak 5 | 5 Average Slot Usage (%) . | . Naked Turns . | . Heaviest Build 17 | 17 Greatest Support 40 | 40 Greatest Overweight (x) 5 | 5 Average Overweight (x) 4 | 4 Largest Inventory Capacity 8 | 8 Average Capacity 7 | 7 Most Carried 6 | 6 Average Carried 4 | 4 Final Capacity 8 | 8 Final Carried 3 | 3 Class Distribution -------------------- None Dominant Class ---------------- None Resources | -11 ----------- Run | Scr Matter Collected 286 | 286 Remotely . | . Salvage Created 107 | 107 Parts 4 | 4 Haulers Intercepted . | . Recyclers Shooed . | . Parts Field Recycled . | . Retrieved Matter . | . Parts Self-Destructed . | . Prevented . | . Kills | -11 ------- Run | Scr Combat Hostiles Destroyed . | . Classes Destroyed 2 | 2 Tunneler 1 | 1 Recycler 1 | 1 Best Kill Streak 2 | 2 Combat Bots Only . | . Max Kills in Single Turn 1 | 1 Gunslinging . | . Exploded . | . Melee . | . Uniques/NPCs Destroyed . | . Combat | -11 -------- Run | Scr Damage Taken 947 | 947 Core 256 | 256 Absorbed by Shields . | . Core Remaining (%) . | . Volleys Fired 13 | 13 Largest 2 | 2 Hottest 60 | 60 Shots Fired 24 | 24 Gun 24 | 24 Cannon . | . Launcher . | . Special . | . Kinetic 20 | 20 Thermal . | . Explosive . | . Electromagnetic 4 | 4 Robot Hit Streak 9 | 9 Robot Miss Streak 3 | 3 Penetration Max . | . Secondary Targets . | . Shots Hit Robots 14 | 14 Core Hits 4 | 4 Critical Hits 1 | 1 Critical Kills . | . Critical Parts Destroyed 1 | 1 Melee Attacks . | . Impact . | . Slashing . | . Piercing . | . Sneak Attacks . | . Combat Hostiles . | . Follow-up Attacks . | . Damage Inflicted 179 | 179 Guns 179 | 179 Cannons . | . Explosions . | . Melee . | . Ramming . | . Kinetic 168 | 168 Thermal . | . Explosive . | . Electromagnetic 11 | 11 Impact . | . Slashing . | . Piercing . | . Highest Corruption . | . Average Corruption . | . Corruption Purged . | . Overload Shots . | . Overflow Damage . | . Projectiles . | . Explosions . | . Melee . | . Knockbacks . | . Impact . | . Kinetic . | . Secondary . | . Self-Inflicted Damage . | . Shots . | . Rammed . | . Targets Rammed . | . Kicked . | . Crushed . | . Highest Temperature . | . Average Temperature . | . Received Heat Transfer . | . Siege Activations . | . Robots Corrupted . | . Combat Hostiles . | . Parts Fried . | . Impact Corruptions . | . Robots Melted . | . Combat Hostiles . | . Parts Melted . | . Heat Transferred . | . Parts Sabotaged . | . Parts Stolen . | . Parts Stripped . | . Power Chain Reactions . | . Missiles Intercepted . | . Alert | -11 ------- Run | Scr Peak Influence 10 | 10 Initial . | . Average . | . Maximum Alert Level . | . Low Security (%) 100 | 100 Level 1 . | . Level 2 . | . Level 3 . | . Level 4 . | . Level 5 . | . High Security . | . Max Security . | . Squads Dispatched . | . Investigation . | . Extermination . | . Reinforcement . | . Assault . | . Garrison . | . Intercept . | . Construction Impeded . | . Haulers Reinforced . | . Stealth | -11 --------- Run | Scr Distress Signals . | . Communications Jammed . | . Distress Signals . | . Times Spotted 2 | 2 Peak Tracking Total 2 | 2 Tactical Retreats . | . Traps | -11 ------- Run | Scr Traps Triggered . | . Indirectly . | . Trap Hack Attempts . | . Triggered . | . Disarmed . | . Reprogrammed . | . Reused . | . Traps Extracted . | . Installed . | . Triggered . | . Machines | -11 ---------- Run | Scr Machines Disabled . | . Max in Single Turn . | . Machines Sabotaged . | . Garrisons Compromised . | . Overloaded Fab Kills . | . Fab Network Shutdowns . | . Hacking | -11 --------- Run | Scr Machines Accessed . | . Terminals . | . Fabricators . | . Repair Stations . | . Recycling Units . | . Scanalyzers . | . Garrison Access . | . Total Hacks . | . Successful . | . Failed . | . Catastrophic . | . Database Lockouts . | . Manual . | . Terminals . | . Fabricators . | . Repair Stations . | . Recycling Units . | . Scanalyzers . | . Garrison Access . | . Terminal Hacks . | . Fabricator Hacks . | . Repair Station Hacks . | . Recycling Unit Hacks . | . Scanalyzer . | . Garrison Access Hacks . | . Unauthorized Hacks . | . Terminals . | . Fabricators . | . Repair Stations . | . Recycling Units . | . Scanalyzers . | . Garrison Access . | . Data Cores Recovered . | . Used . | . Hacking Detections . | . Full Trace Events . | . Feedback Events . | . Feedback Blocked . | . Robot Schematics Acquired . | . Robots Built . | . Matter . | . Time . | . Total Robot Build Rating . | . Part Schematics Acquired . | . Parts Built . | . Matter . | . Time . | . Total Part Build Rating . | . Parts Repaired . | . Time . | . Parts Recycled . | . Recycled Matter . | . Retrieved Matter . | . Retrieved Components . | . Parts Scanalyzed . | . Part Schematics Acquired . | . Parts Damaged . | . Bothacking | -11 ------------ Run | Scr Used RIF Installer . | . Robots Hacked . | . Non-combat . | . Combat . | . Robot Hacks Applied . | . Relay Couplers Released . | . Robots Rewired . | . Allies Hacked . | . Hacks Repelled . | . Allies | -11 -------- Run | Scr Total Allies . | . Largest Group . | . Highest-Rated Group . | . Highest-Rated Ally . | . Total Orders . | . Ally Attacks . | . Total Damage . | . Kills . | . Allies Corrupted . | . Allies Melted . | . Intel | -11 ------- Run | Scr Robot Analysis Total . | . Derelict Logs Recovered . | . Drone Launches . | . Drone Recoveries . | . Exploration | -11 ------------- Run | Scr Turns Passed 4704 | 4704 Spaces Moved 1721 | 1721 Core 1700 | 1700 Treads 9 | 9 Legs 12 | 12 Wheels . | . Hover . | . Flight . | . Fastest Speed 120 | 120 Average Speed 270 | 270 Slowest Speed 300 | 300 Overloaded Moves . | . Propulsion Burnouts . | . Robots Hopped . | . Cave-ins Triggered . | . Exploration Rate (%) 81 | 81 Regions Visited . Branch Regions . Pre-discovered Areas . | . Known Exits Taken . | . Unknown Exits Taken . | . Scrap Searched . | . Spaces Dug . | . Terrain Destroyed . | . Melee . | . Projectile . | . AOE . | . Terrain Rammed . | . Walls Destroyed . | . Machines Disabled . | . Actions | -11 --------- Run | Scr Total 1744 | 1744 Wait . | . Move 1721 | 1721 Hop . | . Pick Up 1 | 1 Fast Attach 1 | 1 Attach 3 | 3 Detach . | . Swap 2 | 2 Drop 3 | 3 Fire 13 | 13 Melee . | . Ram . | . Kick . | . Crush . | . Escape Stasis . | . Rewire . | . Trap . | . Miscellaneous . | . Route ------- -11/Scrapyard (discovered 1 exit: [*Mat]) History --------- Turn | Location | Event 18 | -11/Scrapyard | Discovered new exit (range 3) 4684 | -11/Scrapyard | Assembled infested the area 4692 | -11/Scrapyard | Core integrity fell below 50% 4704 | -11/Scrapyard | Core integrity fell below 20% 4705 | -11/Scrapyard | Destroyed by D-53 Grenadier with Mini Grenade Launcher Last Messages --------------- 01496_ T-07 Excavator is excavating. 01874_ K-01 Serf collects debris. 02027_ T-07 Excavator is excavating. 02349_ K-01 Serf collects debris. 02649_ Acquired 10 matter. 04684_ ALERT: Infestation in the scrapyard, dispatching Demolisher response squad. [Achievement: Curiosity Killed The Cat] 04684_ C-30 ARC bursts open, deploying its payload. 04684_ D-53 Grenadier unfolds itself. 04684_ T-07 Excavator destroyed. 04684_ K-01 Serf collects debris. 04685_ K-01 Serf destroyed. 04689_ The unstable cave ceiling collapses. 04693_ Assault Rifle destroyed. 04699_ Ion Engine destroyed. 04699_ Lgt. Treads destroyed. 04700_ Assault Rifle destroyed. 04703_ The unstable cave ceiling collapses. 04704_ Lgt. Treads destroyed. Map ----- +----------------------------------------------------+ | ??????????????????????????????????# # # | | ??????????????????????????????????######### ##### | | ?????#####???????????????????????????# ?# ##### | | ###### #???????????????????????????# ?# # | | #???????????????????????????# # # | | #???????????????????????????# # # | | ##### #??????########?????????????# | | ????## ##??????# #?????????????# # # | | ?????# #???????# ########??????# # # | | ?????# #???????# # # #?????# ?# ##### | | ###### #???????# #?????# ?# #???? | | ## #????? # # # #?????###??# #???? | | ## #???? # # #?????????????# #???? | | ## ##?? # # #??##########?# #???? | | # #? # #??# #?# #???? | | # # ########## #??# #?# ##### | | # ## # #??# #?# # | | # # ## #??# #?# # | | ###### ### ## # #??# #?# # | | #? ########## #??# #?# # | | #?######?????#### #### ??# | | ##########??## # ???# # | | # #?## # ?????# # | | # #?# ### ######## # | | ###### ### ### # | | ==t @ ##### | | t=% d ### ######## #??? | | ###### ### =### < # #?# #???? | | ???? ?# #?## %d# #?# #???? | | ?? ?# #??## #### #?# #???? | | ? ?#### ##############??# #?# #???? | | # ????# # #????????# #?# #???? | | # ????# # #????????# ### ##??? | | ????# #????????# ## #### | | # ???# # #????????# ## | | # #???# # #?######?# ## | | # #???# #? #?########### #### | | ########????# ########### #???????????######??? | | ??########### # # #???????????????????? | | ??# # # ###########?????????? | | ??# ## # #?????????? | | ??# # # ## # #?????????? | | ??# # ############ #?????????? | | ??########### ##?????????# # #?????????? | | ??# # #?????????# ###########?????????? | | ??# ########??# ########????????????? | | ??# # # #??# # #????????????? | | ??# # # #??# # #????????????? | | ??# ## ## #??# # #????????????? | | ??# ## ## ???# #????????????? | +----------------------------------------------------+ Best States ------------- Heat Dissipation 25 Energy Generation 10 Energy Capacity 250 Matter Stores 300 Matter Capacity 300 Sight Range 16 Terrain Scan Density 10 Evasion (%) 40 Recoil Reduction 2 Item Schematics ----------------- None Robot Schematics ------------------ None Fabricated ------------ Nothing Alien Tech Used ----------------- None Achievements -------------- Curiosity Killed The Cat Challenges ------------ None Game ------ Seed HoverFrostComputer Manual? 0 Play Time 00:11:00 Cumulative 336.9 hours Start 2022.02.11 @ 17:09:55 End 2022.02.11 @ 17:17:08 Sessions 0 Manual Loads 0 Difficulty Rogue Special Mode None Game No. 285 Rogue 285 Adventurer 0 Explorer 0 Win Type - Total 6 Types 5/0/1/0/0/0/0/0/0 Lore% 55 Gallery% 78 Achievement% 62 Wizard Run 0 Options --------- ASCII 0 Keyboard 0 Movement Numpad Keybinds 0 Fullscreen 2 Font 18/TerminusBold Map View 76x50 Tactical HUD 1 Map Filters NONE Filters NONE Steam 1 RUN: fc80b105-dcc2-4f70-b358-92bc3a047b5b